lending/lending_fUSD_20250121
["ID","MTS","AMOUNT","RATE_DAILY","PERIOD"]
[349880992,1737475871095,-500.0,0.00020821,2]
[349880993,1737475871105,-681.6,0.00020821,2]
[349880994,1737475871114,-500.0,0.00020821,2]
[349880995,1737475871123,-500.0,0.00020821,2]
[349880996,1737475871134,-500.0,0.00020821,2]
[349880997,1737475871144,-500.0,0.00020821,2]
[349880998,1737475871154,-555.71,0.00020821,2]
[349880999,1737475871165,-151.0,0.00020821,2]
[349881000,1737475871174,-831.08,0.00020821,2]
[349881001,1737475871184,-151.0,0.00020821,2]
[349881002,1737475871194,-500.0,0.00020821,2]
[349881003,1737475871207,-500.0,0.00020821,2]
[349881004,1737475871217,-151.0,0.00020821,2]
[349881005,1737475871227,-151.0,0.00020821,2]
[349881006,1737475871236,-151.0,0.00020821,2]
[349881007,1737475871246,-500.0,0.00020821,2]
[349881008,1737475871255,-221.0049,0.00020821,2]
[349881009,1737475871265,-298.92325668,0.00020821,2]
[349881010,1737475871278,-500.0,0.00020821,2]
[349881011,1737475871287,-500.0,0.00020821,2]
[349881012,1737475871297,-500.0,0.00020821,2]
[349881013,1737475871307,-672.81,0.00020821,2]
[349881014,1737475871317,-500.0,0.00020821,2]
[349881015,1737475871327,-707.66,0.00020821,2]
[349881016,1737475871337,-151.0,0.00020821,2]
[349881017,1737475871347,-151.0,0.00020821,2]
[349881018,1737475871357,-570.45378323,0.00020821,2]
[349881019,1737475871367,-567.96396379,0.00020821,2]
[349881020,1737475871377,-151.0,0.00020821,2]
[349881021,1737475871389,-151.0,0.00020821,2]
[349881022,1737475871398,-500.0,0.00020821,2]
[349881023,1737475871408,-500.0,0.00020821,2]
[349881024,1737475871419,-547.42817742,0.00020821,2]
[349881025,1737475871429,-500.0,0.00020821,2]
[349881026,1737475871439,-500.0,0.00020821,2]
[349881027,1737475871450,-500.0,0.00020821,2]
[349881028,1737475871461,-500.0,0.00020821,2]
[349881029,1737475871471,-752.030053,0.00020821,2]
[349881030,1737475871482,-381.09173129,0.00020821,2]
[349881031,1737475871492,-500.0,0.00020821,2]
[349881032,1737475871502,-500.0,0.00020821,2]
[349881033,1737475871512,-500.0,0.00020821,2]
[349881034,1737475871524,-752.030053,0.00020821,2]
[349881035,1737475871535,-500.0,0.00020821,2]
[349881036,1737475871546,-500.0,0.00020821,2]
[349881037,1737475871556,-151.0,0.00020821,2]
[349881038,1737475871566,-500.0,0.00020821,2]
[349881039,1737475871576,-500.0,0.00020821,2]
[349881040,1737475871586,-667.353456,0.00020821,2]
[349881041,1737475871596,-500.0,0.00020821,2]
[349881042,1737475871605,-500.0,0.00020821,2]
[349881043,1737475871616,-500.0,0.00020821,2]
[349881044,1737475871625,-500.0,0.00020821,2]
[349881045,1737475871635,-500.0,0.00020821,2]
[349881046,1737475871646,-500.0,0.00020821,2]
[349881047,1737475871656,-500.0,0.00020821,2]
[349881048,1737475871666,-500.0,0.00020821,2]
[349881049,1737475871676,-500.0,0.00020821,2]
[349881050,1737475871685,-500.0,0.00020821,2]
[349881051,1737475871695,-500.0,0.00020821,2]
[349881052,1737475871705,-500.0,0.00020821,2]
[349881053,1737475871714,-500.0,0.00020821,2]
[349881054,1737475871725,-500.0,0.00020821,2]
[349881055,1737475871734,-500.0,0.00020821,2]
[349881056,1737475871744,-500.0,0.00020821,2]
[349881057,1737475871754,-610.88,0.00020821,2]
[349881058,1737475871766,-500.0,0.00020821,2]
[349881059,1737475871779,-737.179408,0.00020821,2]
[349881060,1737475871789,-500.0,0.00020821,2]
[349881061,1737475871799,-500.0,0.00020821,2]
[349881062,1737475871811,-565.45,0.00020821,2]
[349881063,1737475871821,-500.0,0.00020821,2]
[349881064,1737475871831,-333.39333306,0.00020821,2]
[349881065,1737475871841,-500.0,0.00020821,2]
[349881066,1737475871851,-500.0,0.00020821,2]
[349881067,1737475871860,-500.0,0.00020821,2]
[349881068,1737475871869,-560.25,0.00020821,2]
[349881069,1737475871879,-500.0,0.00020821,2]
[349881070,1737475871888,-500.0,0.00020821,2]
[349881071,1737475871898,-500.0,0.00020821,2]
[349881072,1737475871908,-500.0,0.00020821,2]
[349881073,1737475871919,-500.0,0.00020821,2]
[349881074,1737475871928,-627.98971933,0.00020821,2]
[349881075,1737475871938,-500.0,0.00020821,2]
[349881076,1737475871947,-500.0,0.00020821,2]
[349881077,1737475871957,-575.37,0.00020821,2]
[349881078,1737475871966,-500.0,0.00020821,2]
[349881079,1737475871976,-500.0,0.00020821,2]
[349881080,1737475871986,-500.0,0.00020821,2]
[349881081,1737475871996,-500.0,0.00020821,2]
[349881082,1737475872007,-500.0,0.00020821,2]
[349881083,1737475872017,-500.0,0.00020821,2]
[349881084,1737475872030,-621.55,0.00020821,2]
[349881085,1737475872040,-830.18,0.00020821,2]
[349881086,1737475872049,-500.0,0.00020821,2]
[349881087,1737475872059,-500.0,0.00020821,2]
[349881088,1737475872068,-290.40998458,0.00020821,2]
[349881089,1737475872079,-500.0,0.00020821,2]
[349881090,1737475872089,-500.0,0.00020821,2]
[349881091,1737475872101,-500.0,0.00020821,2]
[349881092,1737475872111,-545.76,0.00020821,2]
[349881093,1737475872120,-500.0,0.00020821,2]
[349881094,1737475872129,-500.0,0.00020821,2]
[349881095,1737475872138,-500.0,0.00020821,2]
[349881096,1737475872147,-500.0,0.00020821,2]
[349881097,1737475872157,-500.0,0.00020821,2]
[349881098,1737475872167,-500.0,0.00020821,2]
[349881099,1737475872176,-500.0,0.00020821,2]
[349881100,1737475872186,-500.0,0.00020821,2]
[349881101,1737475872195,-500.0,0.00020821,2]
[349881102,1737475872205,-500.0,0.00020821,2]
[349881103,1737475872215,-500.0,0.00020821,2]
[349881104,1737475872224,-500.0,0.00020821,2]
[349881105,1737475872234,-500.0,0.00020821,2]
[349881106,1737475872244,-500.0,0.00020821,2]
[349881107,1737475872253,-500.0,0.00020821,2]
[349881108,1737475872263,-500.0,0.00020821,2]
[349881109,1737475872275,-500.0,0.00020821,2]
[349881110,1737475872285,-500.0,0.00020821,2]
[349881111,1737475872294,-500.0,0.00020821,2]
[349881112,1737475872303,-500.0,0.00020821,2]
[349881113,1737475872313,-500.0,0.00020821,2]
[349881114,1737475872323,-500.0,0.00020821,2]
[349881115,1737475872333,-500.0,0.00020821,2]
[349881116,1737475872342,-500.0,0.00020821,2]
[349881117,1737475872352,-500.0,0.00020821,2]
[349881118,1737475872469,-500.0,0.00020821,2]
[349881119,1737475872480,-500.0,0.00020821,2]
[349881120,1737475872490,-805.15,0.00020821,2]
[349881121,1737475872499,-500.0,0.00020821,2]
[349881122,1737475872509,-500.0,0.00020821,2]
[349881123,1737475872520,-500.0,0.00020821,2]
[349881124,1737475872533,-500.0,0.00020821,2]
[349881125,1737475872543,-500.0,0.00020821,2]
[349881126,1737475872553,-500.0,0.00020821,2]
[349881127,1737475872564,-618.31,0.00020821,2]
[349881128,1737475872574,-520.16,0.00020821,2]
[349881129,1737475872584,-1629.69,0.00020821,2]
[349881130,1737475872593,-500.0,0.00020821,2]
[349881131,1737475872603,-508.79,0.00020821,2]
[349881132,1737475872614,-500.0,0.00020821,2]
[349881133,1737475872624,-694.56,0.00020821,2]
[349881134,1737475872636,-500.0,0.00020821,2]
[349881135,1737475872645,-500.0,0.00020821,2]
[349881136,1737475872654,-1263.31,0.00020821,2]
[349881137,1737475872665,-500.0,0.00020821,2]
[349881138,1737475872675,-500.0,0.00020821,2]
[349881139,1737475872686,-325.76672045,0.00020821,2]
[349881140,1737475872696,-500.0,0.00020821,2]
[349881141,1737475872707,-2691.07,0.00020821,2]
[349881142,1737475872717,-500.0,0.00020821,2]
[349881143,1737475872727,-645.13,0.00020821,2]
[349881144,1737475872737,-196.656917,0.00020821,2]
[349881145,1737475872746,-890.72,0.00020821,2]
[349881146,1737475872756,-2253.63,0.00020821,2]
[349881147,1737475872768,-500.0,0.00020821,2]
[349881148,1737475872781,-500.0,0.00020821,2]
[349881149,1737475872790,-1452.22,0.00020821,2]
[349881150,1737475872800,-1116.63,0.00020821,2]
[349881151,1737475872812,-547.79,0.00020821,2]
[349881152,1737475872822,-915.26,0.00020821,2]
[349881153,1737475872831,-384.57380165,0.00020821,2]
[349881154,1737475872841,-3864.5,0.00020821,2]
[349881155,1737475872851,-807.11,0.00020821,2]
[349881156,1737475872861,-2795.23,0.00020821,2]
[349881157,1737475872871,-2646.224274,0.00020821,2]
[349881158,1737475872881,-657.52,0.00020821,2]
[349881159,1737475872891,-500.0,0.00020821,2]
[349881160,1737475872902,-2646.224274,0.00020821,2]
[349881161,1737475872912,-1087.67,0.00020821,2]
[349881162,1737475872922,-1302.3,0.00020821,2]
[349881163,1737475872932,-1232.01,0.00020821,2]
[349881164,1737475872941,-500.0,0.00020821,2]
[349881165,1737475872951,-1499.37,0.00020821,2]
[349881166,1737475872960,-1231.63,0.00020821,2]
[349881167,1737475872970,-500.0,0.00020821,2]
[349881168,1737475872980,-1601.77,0.00020821,2]
[349881169,1737475872990,-646.72,0.00020821,2]
[349881170,1737475873000,-967.09,0.00020821,2]
[349881171,1737475873010,-500.0,0.00020821,2]
[349881172,1737475873020,-617.10182651,0.00020821,2]
[349881173,1737475873034,-2471.72,0.00020821,2]
[349881174,1737475873045,-762.34,0.00020821,2]
[349881175,1737475873055,-1839.77,0.00020821,2]
[349881176,1737475873064,-226.948823,0.00020821,2]
[349881177,1737475873074,-1125.91,0.00020821,2]
[349881178,1737475873083,-940.03,0.00020821,2]
[349881179,1737475873092,-226.948823,0.00020821,2]
[349881180,1737475873102,-2525.34,0.00020821,2]
[349881181,1737475873112,-1709.51,0.00020821,2]
[349881182,1737475873122,-151.0,0.00020821,2]
[349881183,1737475873132,-800.12,0.00020821,2]
[349881184,1737475873142,-344.602991,0.00020821,2]
[349881185,1737475873151,-1062.88,0.00020821,2]
[349881186,1737475873163,-739.24,0.00020821,2]
[349881187,1737475873173,-816.14,0.00020821,2]
[349881188,1737475873183,-153.027457,0.00020821,2]
[349881189,1737475873192,-3463.05,0.00020821,2]
[349881190,1737475873202,-344.602991,0.00020821,2]
[349881191,1737475873212,-500.0,0.00020821,2]
[349881192,1737475873221,-500.0,0.00020821,2]
[349881193,1737475873230,-2220.19,0.00020821,2]
[349881194,1737475873240,-500.0,0.00020821,2]
[349881195,1737475873253,-1566.92,0.00020821,2]
[349881196,1737475873273,-3463.88,0.00020821,2]
[349881197,1737475873293,-3439.97,0.00020821,2]
[349881198,1737475873311,-500.0,0.00020821,2]
[349881199,1737475873329,-500.0,0.00020821,2]
[349881200,1737475873347,-1334.36,0.00020821,2]
[349881201,1737475873366,-2915.12,0.00020821,2]
[349881202,1737475873385,-1921.68,0.00020821,2]
[349881203,1737475873406,-1294.29,0.00020821,2]
[349881204,1737475873425,-1567.67,0.00020821,2]
[349881205,1737475873445,-663.86,0.00020821,2]
[349881206,1737475873461,-1643.03,0.00020821,2]
[349881207,1737475873480,-1240.69,0.00020821,2]
[349881208,1737475873493,-622.35,0.00020821,2]
[349881209,1737475873513,-500.0,0.00020821,2]
[349881210,1737475873529,-250.125144,0.00020821,2]
[349881211,1737475873545,-1130.45,0.00020821,2]
[349881212,1737475873562,-931.92,0.00020821,2]
[349881213,1737475873580,-1812.77,0.00020821,2]
[349881214,1737475873596,-1151.69,0.00020821,2]
[349881215,1737475873612,-250.125144,0.00020821,2]
[349881216,1737475873629,-2024.14,0.00020821,2]
[349881217,1737475873645,-6176.7,0.00020821,2]
[349881218,1737475873660,-500.0,0.00020821,2]
[349881219,1737475873677,-151.0,0.00020821,2]
[349881220,1737475873692,-648.2,0.00020821,2]
[349881221,1737475873709,-1172.98,0.00020821,2]
[349881222,1737475873726,-151.0,0.00020821,2]
[349881223,1737475873744,-2700.92,0.00020821,2]
[349881224,1737475873761,-500.0,0.00020821,2]
[349881225,1737475873782,-1124.3,0.00020821,2]
[349881226,1737475873798,-2422.11,0.00020821,2]
[349881227,1737475873815,-744.53,0.00020821,2]
[349881228,1737475873832,-1761.76,0.00020821,2]
[349881229,1737475873848,-5036.59,0.00020821,2]
[349881230,1737475873864,-820.74,0.00020821,2]
[349881231,1737475873878,-1108.09,0.00020821,2]
[349881232,1737475873894,-151.0,0.00020821,2]
[349881233,1737475873909,-1138.49,0.00020821,2]
[349881234,1737475873925,-709.86,0.00020821,2]
[349881235,1737475873943,-2383.66,0.00020821,2]
[349881236,1737475873962,-882.47,0.00020821,2]
[349881237,1737475873979,-440.05299115,0.00020821,2]
[349881238,1737475873995,-500.0,0.00020821,2]
[349881239,1737475874009,-848.97,0.00020821,2]
[349881240,1737475874020,-500.0,0.00020821,2]
[349881241,1737475874035,-500.0,0.00020821,2]
[349881242,1737475874044,-693.82,0.00020821,2]
[349881243,1737475874056,-500.0,0.00020821,2]
[349881244,1737475874066,-231.958833,0.00020821,2]
[349881245,1737475874077,-1534.92,0.00020821,2]
[349881246,1737475874086,-557.69,0.00020821,2]
[349881247,1737475874095,-2099.21,0.00020821,2]
[349881248,1737475874104,-1760.35,0.00020821,2]
[349881249,1737475874114,-953.39,0.00020821,2]
[349881250,1737475874125,-500.0,0.00020821,2]
[349881251,1737475874135,-500.0,0.00020821,2]
[349881252,1737475874146,-1525.72,0.00020821,2]
[349881253,1737475874156,-4340.86,0.00020821,2]
[349881254,1737475874166,-677.18,0.00020821,2]
[349881255,1737475874176,-590.27,0.00020821,2]
[349881256,1737475874186,-513.99,0.00020821,2]
[349881257,1737475874196,-500.0,0.00020821,2]
[349881258,1737475874206,-500.0,0.00020821,2]
[349881259,1737475874217,-500.0,0.00020821,2]
[349881260,1737475874228,-500.0,0.00020821,2]
[349881261,1737475874237,-849.56,0.00020821,2]
[349881262,1737475874247,-500.0,0.00020821,2]
[349881263,1737475874257,-151.0,0.00020821,2]
[349881264,1737475874267,-500.0,0.00020821,2]
[349881265,1737475874280,-2441.3,0.00020821,2]
[349881266,1737475874293,-500.0,0.00020821,2]
[349881267,1737475874303,-671.34,0.00020821,2]
[349881268,1737475874313,-500.0,0.00020821,2]
[349881269,1737475874323,-1268.14,0.00020821,2]
[349881270,1737475874332,-536.19,0.00020821,2]
[349881271,1737475874342,-200.0,0.00020828,2]
[349881272,1737475874352,-150.0,0.00020829,2]
[349881273,1737475874362,-560.7,0.0002083,2]
[349881274,1737475874736,-200.0,0.00020831,2]
[349881275,1737475874756,-150.0,0.00020834,2]
[349881276,1737475874773,-150.0,0.00020838,2]
[349881277,1737475874786,-200.0,0.00020845,2]
[349881278,1737475874797,-150.0,0.00020866,2]
[349881279,1737475874807,-150.0,0.00020882,2]
[349881280,1737475874818,-1051.05,0.00020889,7]
[349881281,1737475874828,-1051.05,0.00020889,7]
[349881282,1737475874838,-200.0,0.00020899,2]
[349881283,1737475874848,-2477.76,0.000209,2]
[349881284,1737475874858,-1000.0,0.000209,2]
[349881285,1737475874867,-376.33826747,0.000209,2]
[349881286,1737475874878,-200.0,0.00020901,2]
[349881287,1737475874887,-200.0,0.00020918,2]
[349881288,1737475874897,-153.74,0.00020927,2]
[349881289,1737475874907,-150.0,0.0002093,2]
[349881290,1737475874917,-376.33826723,0.00020934,2]
[349881291,1737475874927,-743.45,0.00020957,2]
[349881292,1737475874937,-1247.0,0.00020964,2]
[349881293,1737475874947,-150.0,0.00020967,2]
[349881294,1737475874957,-376.33826723,0.00020969,2]
[349881295,1737475874966,-485.9,0.00020976,2]
[349881296,1737475874976,-2930.62418434,0.0002098,2]
[349881297,1737475874986,-787.36,0.00020995,2]
[349881298,1737475874995,-500.0,0.00020995,2]
[349881299,1737475875005,-910.89,0.00020995,2]
[349881300,1737475875019,-500.0,0.00020995,2]
[349881301,1737475875033,-929.74,0.00020995,2]
[349881302,1737475875043,-917.84,0.00020995,2]
[349881303,1737475875052,-902.25,0.00020995,2]
[349881304,1737475875063,-1135.44,0.00020995,2]
[349881305,1737475875073,-810.0,0.00020995,2]
[349881306,1737475875082,-1600.98,0.00020995,2]
[349881307,1737475875092,-4064.87,0.00020995,2]
[349881308,1737475875104,-897.93,0.00020995,2]
[349881309,1737475875114,-673.81,0.00020995,2]
[349881310,1737475875124,-1271.26,0.00020995,2]
[349881311,1737475875135,-500.0,0.00020995,2]
[349881312,1737475875145,-1174.41,0.00020995,2]
[349881313,1737475875155,-1337.39,0.00020995,2]
[349881314,1737475875166,-1158.29,0.00020995,2]
[349881315,1737475875176,-1252.35,0.00020995,2]
[349881316,1737475875186,-1416.74,0.00020995,2]
[349881317,1737475875197,-150.0,0.00020998,2]
[349881318,1737475875207,-150.0,0.00020998,2]
[349881319,1737475875217,-3074.71,0.00020998,2]
[349881320,1737475875228,-150.0,0.00020999,2]
[349881321,1737475875239,-3074.71,0.00020999,2]
[349881322,1737475875248,-3074.71,0.00020999,2]
[349881323,1737475875258,-154.0,0.00021,2]
[349881324,1737475875267,-484991.03636915,0.00021,4]
[349881325,1737475875278,-1504.45911584,0.00021,2]
[349881326,1737475875288,-2110.0,0.00021,2]
[349881327,1737475875298,-151.0,0.00021,2]
[349881328,1737475875308,-151.0,0.00021,2]
[349881329,1737475875318,-151.0,0.00021,2]
[349881330,1737475875327,-151.0,0.00021,2]
[349881331,1737475875338,-151.0,0.00021,2]
[349881332,1737475875348,-151.0,0.00021,2]
[349881333,1737475875359,-151.0,0.00021,2]
[349881334,1737475875368,-151.0,0.00021,2]
[349881335,1737475875378,-219.0,0.00021,2]
[349881336,1737475875390,-151.735605,0.00021,2]
[349881337,1737475875401,-151.0,0.00021,2]
[349881338,1737475875412,-151.0,0.00021,2]
[349881339,1737475875422,-151.0,0.00021,2]
[349881340,1737475875432,-820.239689,0.00021,2]
[349881341,1737475875445,-820.239689,0.00021,2]
[349881342,1737475875454,-229.838024,0.00021,2]
[349881343,1737475875464,-151.0,0.00021,2]
[349881344,1737475875474,-229.838024,0.00021,2]
[349881345,1737475875484,-151.0,0.00021,2]
[349881346,1737475875495,-151.0,0.00021,2]
[349881347,1737475875504,-151.0,0.00021,2]
[349881348,1737475875516,-275.814868,0.00021,2]
[349881349,1737475875529,-151.985231,0.00021,2]
[349881350,1737475875540,-151.0,0.00021,2]
[349881351,1737475875549,-151.0,0.00021,2]
[349881352,1737475875559,-752.030053,0.00021,2]
[349881353,1737475875568,-752.030053,0.00021,2]
[349881354,1737475875577,-151.0,0.00021,2]
[349881355,1737475875587,-151.0,0.00021,2]
[349881356,1737475875597,-151.0,0.00021,2]
[349881357,1737475875607,-151.0,0.00021,2]
[349881358,1737475875616,-1799.99999906,0.00021,22]
[349881359,1737475875626,-151.0,0.00021,2]
[349881360,1737475875635,-490.744439,0.00021,2]
[349881361,1737475875645,-505.709005,0.00021,2]
[349881362,1737475875655,-699.020223,0.00021,2]
[349881363,1737475875665,-699.020223,0.00021,2]
[349881364,1737475875675,-151.0,0.00021,2]
[349881365,1737475875685,-151.0,0.00021,2]
[349881366,1737475875696,-164.392577,0.00021,2]
[349881367,1737475875706,-164.392577,0.00021,2]
[349881368,1737475875716,-341.496494,0.00021,2]
[349881369,1737475875726,-341.496494,0.00021,2]
[349881370,1737475875736,-534.136556,0.00021,2]
[349881371,1737475875746,-534.136556,0.00021,2]
[349881372,1737475875757,-151.0,0.00021,2]
[349881373,1737475875772,-151.0,0.00021,2]
[349881374,1737475875786,-151.0,0.00021,2]
[349881375,1737475875796,-151.0,0.00021,2]
[349881376,1737475875807,-151.0,0.00021,2]
[349881377,1737475875816,-2646.224274,0.00021,2]
[349881378,1737475875825,-2646.224274,0.00021,2]
[349881379,1737475875835,-226.948823,0.00021,2]
[349881380,1737475875846,-226.948823,0.00021,2]
[349881381,1737475875857,-151.0,0.00021,2]
[349881382,1737475875867,-344.602991,0.00021,2]
[349881383,1737475875877,-344.602991,0.00021,2]
[349881384,1737475875887,-250.125144,0.00021,2]
[349881385,1737475875896,-250.125144,0.00021,2]
[349881386,1737475875906,-151.0,0.00021,2]
[349881387,1737475875916,-155.397585,0.00021,2]
[349881388,1737475875926,-151.0,0.00021,2]
[349881389,1737475875935,-214.8,0.00021,2]
[349881390,1737475875945,-376.33826723,0.00021003,2]
[349881391,1737475875956,-150.0,0.00021029,2]
[349881392,1737475875966,-150.0,0.0002103,2]
[349881393,1737475875981,-376.33826723,0.00021038,2]
[349881394,1737475875990,-150.0,0.0002106,2]
[349881395,1737475876000,-150.0,0.00021066,2]
[349881397,1737475876011,-938.3797214,0.00021069,2]
[349881398,1737475876020,-376.33826723,0.00021072,2]
[349881399,1737475876033,-377.17375786,0.00021073,2]
[349881400,1737475876043,-500.0,0.00021073,2]
[349881401,1737475876053,-500.0,0.00021073,2]
[349881402,1737475876062,-301.45000873,0.00021073,2]
[349881403,1737475876073,-150.0,0.00021073,2]
[349881404,1737475876083,-666.0,0.00021079,2]
[349881405,1737475876093,-3074.71,0.00021079,2]
[349881406,1737475876108,-3074.71,0.00021079,2]
[349881407,1737475876118,-3074.71,0.00021079,2]
[349881408,1737475876128,-3074.71,0.00021079,2]
[349881409,1737475876137,-3074.74845676,0.00021079,2]
[349881410,1737475876147,-403743.88410813,0.0002108,2]
[349881411,1737475876157,-151.0,0.0002108,2]
[349881412,1737475876167,-151.0,0.0002108,2]
[349881413,1737475876176,-151.0,0.0002108,2]
[349881414,1737475876187,-151.0,0.0002108,2]
[349881415,1737475876198,-151.0,0.0002108,2]
[349881416,1737475876207,-500.0,0.0002108,2]
[349881417,1737475876217,-150.0,0.00021084,2]
[349881418,1737475876226,-743.45,0.00021094,2]
[349881419,1737475876236,-561.38103018,0.00021095,2]
[349881420,1737475876246,-500.0,0.00021095,2]
[349881421,1737475876256,-500.0,0.00021095,2]
[349881422,1737475876265,-151.0,0.00021095,2]
[349881423,1737475876278,-151.0,0.00021095,2]
[349881424,1737475876289,-151.0,0.00021095,2]
[349881425,1737475876300,-699.31,0.00021095,2]
[349881426,1737475876311,-151.0,0.00021095,2]
[349881427,1737475876321,-151.0,0.00021095,2]
[349881428,1737475876330,-153.76999,0.00021095,2]
[349881429,1737475876341,-500.0,0.00021095,2]
[349881430,1737475876351,-151.0,0.00021095,2]
[349881431,1737475876360,-151.0,0.00021095,2]
[349881432,1737475876369,-500.0,0.00021095,2]
[349881433,1737475876379,-522.61,0.00021095,2]
[349881434,1737475876389,-500.0,0.00021095,2]
[349881435,1737475876399,-500.0,0.00021095,2]
[349881436,1737475876409,-850.12,0.00021095,2]
[349881437,1737475876419,-500.0,0.00021095,2]
[349881438,1737475876428,-151.0,0.00021095,2]
[349881439,1737475876438,-500.0,0.00021095,2]
[349881440,1737475876447,-500.0,0.00021095,2]
[349881441,1737475876457,-151.0,0.00021095,2]
[349881442,1737475876467,-1704.94,0.00021095,2]
[349881443,1737475876477,-500.0,0.00021095,2]
[349881444,1737475876486,-500.0,0.00021095,2]
[349881445,1737475876495,-290.31432447,0.00021095,2]
[349881446,1737475876505,-500.0,0.00021095,2]
[349881447,1737475876515,-500.0,0.00021095,2]
[349881448,1737475876524,-500.0,0.00021095,2]
[349881449,1737475876537,-151.0,0.00021095,2]
[349881450,1737475876547,-500.0,0.00021095,2]
[349881451,1737475876557,-221.63,0.00021095,2]
[349881452,1737475876568,-500.0,0.00021095,2]
[349881453,1737475876578,-820.239689,0.00021095,2]
[349881454,1737475876587,-584.12,0.00021095,2]
[349881455,1737475876597,-820.239689,0.00021095,2]
[349881456,1737475876606,-500.0,0.00021095,2]
[349881457,1737475876616,-500.0,0.00021095,2]
[349881458,1737475876625,-500.0,0.00021095,2]
[349881459,1737475876635,-500.0,0.00021095,2]
[349881460,1737475876645,-681.6,0.00021095,2]
[349881461,1737475876654,-500.0,0.00021095,2]
[349881462,1737475876665,-500.0,0.00021095,2]
[349881463,1737475876675,-500.0,0.00021095,2]
[349881464,1737475876686,-500.0,0.00021095,2]
[349881465,1737475876696,-555.71,0.00021095,2]
[349881466,1737475876706,-831.08,0.00021095,2]
[349881467,1737475876717,-229.838024,0.00021095,2]
[349881468,1737475876728,-151.0,0.00021095,2]
[349881469,1737475876740,-229.838024,0.00021095,2]
[349881470,1737475876753,-500.0,0.00021095,2]
[349881471,1737475876768,-500.0,0.00021095,2]
[349881472,1737475876782,-266.025284,0.00021095,2]
[349881473,1737475876795,-151.0,0.00021095,2]
[349881474,1737475876808,-151.0,0.00021095,2]
[349881475,1737475876820,-500.0,0.00021095,2]
[349881476,1737475876831,-500.0,0.00021095,2]
[349881477,1737475876844,-500.0,0.00021095,2]
[349881478,1737475876858,-672.81,0.00021095,2]
[349881479,1737475876871,-500.0,0.00021095,2]
[349881480,1737475876883,-707.66,0.00021095,2]
[349881481,1737475876895,-151.0,0.00021095,2]
[349881482,1737475876907,-324.94102197,0.00021095,2]
[349881483,1737475876919,-500.0,0.00021095,2]
[349881484,1737475876932,-343.12974026,0.00021095,2]
[349881485,1737475876945,-156.44,0.00021095,2]
[349881486,1737475876958,-500.0,0.00021095,2]
[349881487,1737475876970,-752.030053,0.00021095,2]
[349881488,1737475876981,-500.0,0.00021095,2]
[349881489,1737475876991,-500.0,0.00021095,2]
[349881490,1737475877002,-752.030053,0.00021095,2]
[349881491,1737475877013,-500.0,0.00021095,2]
[349881492,1737475877023,-500.0,0.00021095,2]